Workbook

Sheet الاستعلامات
A4: 1 | B4: استعلام بين تارخين | E4: 5 | F4: 6 | G4: 7 | H4: 8 | I4: 9 | J4: 10 | K4: 11 | L4: 12 | M4: 13 | N4: 14 | O4: 15 | P4: 16 | Q4: 17 | R4: 18
B5: 2018-03-26 | C5: الاستعلام برقم الفاتورة | I5: مسح البيانات الحالية | K5: الاستعلام رقم الاذون | O5: الاستعلام رقم PO
B6: 2018-05-17 | C6: رقم الفاتورة | D6: INC-30651017 | K6: رقم اذن استلام | L6: 244 | O6: 18-383 | P6: PO:
B7: صرف | C7: الحالة المطلوبه | D7: وارد | K7: رقم اذن صرف | L7: 57
A8: عمليات الفلتره
E9: =SUBTOTAL(9,E11:E40) -> -243.203 | F9: =SUBTOTAL(9,F11:F40) -> -21239.45 | I9: =SUBTOTAL(9,I11:I40) -> -1061.9725 | J9: -22301.4225
A10: الحالة | B10: الصنف | C10: الوحدة | D10: السعر | E10: الكمية | F10: الاجمالى | G10: الخصم | H10: الاجمالى بعد الخصم | I10: VAT 5% | J10: الاجمالى | K10: اسم المشروع | L10: PO | M10: من مخزن | N10: الفئة | O10: استلام | P10: صرف | Q10: الفاتورة | R10: التاريخ
A11: صرف | B11: AMERICAN SHERI BLACK WOOD 2" | C11: M3 | D11: 5800 | E11: -1.066 | F11: -6182.8 | G11: 0 | H11: 6182.8 | I11: -309.14 | J11: -6491.94 | K11: الرازيات | L11: 18-092 | M11: Cherry-WOOD | N11: خشب شيري | P11: 103 | Q11: INC-30651017 | R11: 2018-03-27
A12: صرف | B12: تيك مجفف 3" | C12: M3 | D12: 5300 | E12: -0.043 | F12: -227.9 | G12: 0 | H12: 227.9 | I12: -11.395 | J12: -239.295 | K12: غيانات | L12: SAM | M12: TEAK-WOOD | N12: خشب شيري | P12: 53 | Q12: 01-22022 | R12: 2018-04-14
A13: صرف | B13: خشب ايروكو 2" (خشب تيك) | C13: M3 | D13: 4250 | E13: -2.644 | F13: -11237 | G13: 0 | H13: 11237 | I13: -561.85 | J13: -11798.85 | K13: غيانات | L13: 18-283 | M13: TEAK-WOOD | N13: خشب شيري | P13: 259 | Q13: 57 | R13: 2018-05-17
A14: صرف | B14: قشرة شري مفجر | C14: M2 | D14: 15 | E14: -239.45 | F14: -3591.75 | G14: 0 | H14: 3591.75 | I14: -179.5875 | J14: -3771.3375 | K14: الرازيات | L14: 18-092 | M14: Cherry-Veneer | N14: قشرة شري | P14: 8 | Q14: 57 | R14: 2018-03-26

Sheet BEECH-Veneer
P1: =SUMIF(Q9:Q999999,Q1,H9:H99999) -> 0 | Q1: سنديان | AA1: كمية
P2: =SUMIF(Q10:Q1000000,Q2,H10:H100000) -> 0 | Q2: سنديان | AA2: قيمة
P3: =SUMIF(Q11:Q1000001,Q3,H11:H100001) -> 0
P4: =SUMIF(Q12:Q1000002,Q4,H12:H100002) -> 0
A6: 1 | B6: =A6+1 -> 2 | C6: =B6+1 -> 3 | D6: 4 | E6: 5 | F6: 6 | G6: 7 | H6: 8 | I6: 9 | J6: 10 | K6: 11 | L6: 12 | M6: 13 | N6: 14 | O6: 15
H7: =SUM(H9:H99999) -> 231.78 | M7: =SUM(M9:M99999) -> 1581.8985 | T7: =SUM(T9:T99999) -> 2156.351 | Y7: 1581.8985 | AA7: =H7-T7 -> -1924.571
B8: الرقم التسلسلى | C8: الحالة وارد | D8: الحالة الصادر | E8: الصنف | F8: الوحدة | G8: السعر | H8: الكمية | I8: الاجمالى | J8: الخصم | K8: الاجمالى بعد الخصم | L8: VAT 5% | M8: الاجمالى | N8: رقم الفاتورة | O8: تاريخ الفاتورة | P8: اسم المورد | Q8: الكود | R8: رقم امر الاستلام | S8: رقم اذن اصرف | T8: الكمية الصادرة | U8: الاجمالى | V8: الخصم | W8: الاجمالى بعد الخصم | X8: VAT 5% | Y8: الاجمالى | Z8: PO | AA8: اسم المشروع | AB8: ملاحظات
B9: 1 | C9: وارد | E9: قشرة زان مفجر | F9: M2 | G9: 6.5 | H9: 231.78 | I9: =G9*H9 -> 1506.57 | J9: 0 | K9: =I9-J9 -> 1506.57 | L9: =K9*5% -> 75.3285 | M9: =L9+K9 -> 1581.8985 | N9: 208 | O9: 2018-06-12 | P9: دار الوفاق | Q9: قشرة زان | R9: 179 | U9: =T9*G9 -> 0 | V9: 0 | W9: =U9-V9 -> 0 | X9: =W9*5% -> 0 | Y9: =X9+W9 -> 0
B10: =B9+1 -> 2 | D10: صرف | E10: قشرة زان مفجر | F10: M2 | G10: 6.5 | I10: =G10*H10 -> 0 | J10: 0 | K10: =I10-J10 -> 0 | L10: =K10*5% -> 0 | M10: =L10+K10 -> 0 | N10: 208 | O10: 2018-06-12 | P10: دار الوفاق | Q10: قشرة زان | S10: 232 | T10: 231.78 | U10: =T10*G10 -> 1506.57 | V10: 0 | W10: =U10-V10 -> 1506.57 | X10: =W10*5% -> 75.3285 | Y10: =X10+W10 -> 1581.8985 | Z10: 18-260 | AA10: جموم
M11: 0 | N11: 31544 | O11: 2018-07-02 | P11: شركة غولدن فينير | Q11: قشرة زان | R11: 193 | U11: 0 | V11: 0 | W11: 0 | X11: 0 | Y11: 0
M12: 0 | N12: 31544 | O12: 2018-07-02 | P12: شركة غولدن فينير | Q12: قشرة زان | S12: 218 | T12: 1123 | U12: 0 | V12: 0 | W12: 0 | X12: 0 | Y12: 0 | Z12: 18-260 | AA12: جموم
M13: 0 | N13: 24 | O13: 2018-01-27 | P13: دار الوفاق | Q13: قشرة زان | R13: 199 | U13: 0 | V13: 0 | W13: 0 | X13: 0 | Y13: 0
M14: 0 | N14: 57 | O14: 2018-01-27 | P14: دار الوفاق | Q14: قشرة زان | S14: 215 | T14: 28.51 | U14: 0 | V14: 0 | W14: 0 | X14: 0 | Y14: 0 | Z14: 00-00 | AA14: بيونير
M15: 0 | N15: 3237 | O15: 2018-07-09 | P15: عالم الاخشاب | Q15: قشرة زان | R15: 208 | U15: 0 | V15: 0 | W15: 0 | X15: 0 | Y15: 0
M16: 0 | N16: 3237 | O16: 2018-07-09 | P16: عالم الاخشاب | Q16: قشرة زان | S16: 262 | T16: 616.371 | U16: 0 | V16: 0 | W16: 0 | X16: 0 | Y16: 0 | Z16: 18-276 | AA16: سعودي
M17: 0 | N17: 31668 | O17: 2018-08-02 | P17: شركة غولدن فينير | Q17: قشرة زان | R17: 216 | U17: 0 | V17: 0 | W17: 0 | X17: 0 | Y17: 0
M18: 0 | N18: 31668 | P18: شركة غولدن فينير | Q18: قشرة زان | S18: 270 | T18: 156.69 | U18: 0 | V18: 0 | W18: 0 | X18: 0 | Y18: 0 | Z18: 18-353 | AA18: الماسة | AB18: 28
M19: 0 | Q19: قشرة زان | U19: 0 | V19: 0 | W19: 0 | X19: 0 | Y19: 0
M20: 0 | Q20: قشرة زان | U20: 0 | V20: 0 | W20: 0 | X20: 0 | Y20: 0
M21: 0 | Q21: قشرة زان | U21: 0 | V21: 0 | W21: 0 | X21: 0 | Y21: 0
M22: 0 | Q22: قشرة زان | U22: 0 | V22: 0 | W22: 0 | X22: 0 | Y22: 0
M23: 0 | Q23: قشرة زان | U23: 0 | V23: 0 | W23: 0 | X23: 0 | Y23: 0
M24: 0 | Q24: قشرة زان | U24: 0 | V24: 0 | W24: 0 | X24: 0 | Y24: 0
M25: 0 | Q25: قشرة زان | U25: 0 | V25: 0 | W25: 0 | X25: 0 | Y25: 0
M26: 0 | Q26: قشرة زان | U26: 0 | V26: 0 | W26: 0 | X26: 0 | Y26: 0
M27: 0 | Q27: قشرة زان | U27: 0 | V27: 0 | W27: 0 | X27: 0 | Y27: 0
M28: 0 | Q28: قشرة زان | U28: 0 | V28: 0 | W28: 0 | X28: 0 | Y28: 0
M29: 0 | Q29: قشرة زان | U29: 0 | V29: 0 | W29: 0 | X29: 0 | Y29: 0
M30: 0 | Q30: قشرة زان | U30: 0 | V30: 0 | W30: 0 | X30: 0 | Y30: 0
M31: 0 | Q31: قشرة زان | U31: 0 | V31: 0 | W31: 0 | X31: 0 | Y31: 0
M32: 0 | Q32: قشرة زان | U32: 0 | V32: 0 | W32: 0 | X32: 0 | Y32: 0
M33: 0 | Q33: قشرة زان | U33: 0 | V33: 0 | W33: 0 | X33: 0 | Y33: 0
M34: 0 | Q34: قشرة زان | U34: 0 | V34: 0 | W34: 0 | X34: 0 | Y34: 0
M35: 0 | Q35: قشرة زان | U35: 0 | V35: 0 | W35: 0 | X35: 0 | Y35: 0
M36: 0 | Q36: قشرة زان | U36: 0 | V36: 0 | W36: 0 | X36: 0 | Y36: 0
M37: 0 | Q37: قشرة زان | U37: 0 | V37: 0 | W37: 0 | X37: 0 | Y37: 0
M38: 0 | Q38: قشرة زان | U38: 0 | V38: 0 | W38: 0 | X38: 0 | Y38: 0
M39: 0 | Q39: قشرة زان | U39: 0 | V39: 0 | W39: 0 | X39: 0 | Y39: 0
M40: 0 | Q40: قشرة زان | U40: 0 | V40: 0 | W40: 0 | X40: 0 | Y40: 0
M41: 0 | Q41: قشرة زان | U41: 0 | V41: 0 | W41: 0 | X41: 0 | Y41: 0
M42: 0 | Q42: قشرة زان | U42: 0 | V42: 0 | W42: 0 | X42: 0 | Y42: 0
M43: 0 | Q43: قشرة زان | U43: 0 | V43: 0 | W43: 0 | X43: 0 | Y43: 0
M44: 0 | Q44: قشرة زان | U44: 0 | V44: 0 | W44: 0 | X44: 0 | Y44: 0
M45: 0 | Q45: قشرة زان | U45: 0 | V45: 0 | W45: 0 | X45: 0 | Y45: 0
M46: 0 | Q46: قشرة زان | U46: 0 | V46: 0 | W46: 0 | X46: 0 | Y46: 0
M47: 0 | Q47: قشرة زان | U47: 0 | V47: 0 | W47: 0 | X47: 0 | Y47: 0
M48: 0 | Q48: قشرة زان | U48: 0 | V48: 0 | W48: 0 | X48: 0 | Y48: 0
M49: 0 | Q49: قشرة زان | U49: 0 | V49: 0 | W49: 0 | X49: 0 | Y49: 0
M50: 0 | Q50: قشرة زان | U50: 0 | V50: 0 | W50: 0 | X50: 0 | Y50: 0
M51: 0 | Q51: قشرة زان | U51: 0 | V51: 0 | W51: 0 | X51: 0 | Y51: 0
M52: 0 | Q52: قشرة زان | U52: 0 | V52: 0 | W52: 0 | X52: 0 | Y52: 0
M53: 0 | Q53: قشرة زان | U53: 0 | V53: 0 | W53: 0 | X53: 0 | Y53: 0
M54: 0 | Q54: قشرة زان | U54: 0 | V54: 0 | W54: 0 | X54: 0 | Y54: 0
M55: 0 | Q55: قشرة زان | U55: 0 | V55: 0 | W55: 0 | X55: 0 | Y55: 0
M56: 0 | Q56: قشرة زان | U56: 0 | V56: 0 | W56: 0 | X56: 0 | Y56: 0
M57: 0 | Q57: قشرة زان | U57: 0 | V57: 0 | W57: 0 | X57: 0 | Y57: 0
M58: 0 | Q58: قشرة زان | U58: 0 | V58: 0 | W58: 0 | X58: 0 | Y58: 0
M59: 0 | Q59: قشرة زان | U59: 0 | V59: 0 | W59: 0 | X59: 0 | Y59: 0
M60: 0 | Q60: قشرة زان | U60: 0 | V60: 0 | W60: 0 | X60: 0 | Y60: 0
M61: 0 | Q61: قشرة زان | U61: 0 | V61: 0 | W61: 0 | X61: 0 | Y61: 0
M62: 0 | Q62: قشرة زان | U62: 0 | V62: 0 | W62: 0 | X62: 0 | Y62: 0
M63: 0 | Q63: قشرة زان | U63: 0 | V63: 0 | W63: 0 | X63: 0 | Y63: 0
M64: 0 | Q64: قشرة زان | U64: 0 | V64: 0 | W64: 0 | X64: 0 | Y64: 0
M65: 0 | Q65: قشرة زان | U65: 0 | V65: 0 | W65: 0 | X65: 0 | Y65: 0
M66: 0 | Q66: قشرة زان | U66: 0 | V66: 0 | W66: 0 | X66: 0 | Y66: 0
M67: 0 | Q67: قشرة زان | U67: 0 | V67: 0 | W67: 0 | X67: 0 | Y67: 0
M68: 0 | Q68: قشرة زان | U68: 0 | V68: 0 | W68: 0 | X68: 0 | Y68: 0
M69: 0 | Q69: قشرة زان | U69: 0 | V69: 0 | W69: 0 | X69: 0 | Y69: 0
M70: 0 | Q70: قشرة زان | U70: 0 | V70: 0 | W70: 0 | X70: 0 | Y70: 0
M71: 0 | Q71: قشرة زان | U71: 0 | V71: 0 | W71: 0 | X71: 0 | Y71: 0
M72: 0 | Q72: قشرة زان | U72: 0 | V72: 0 | W72: 0 | X72: 0 | Y72: 0
M73: 0 | Q73: قشرة زان | U73: 0 | V73: 0 | W73: 0 | X73: 0 | Y73: 0

Sheet Cherry-WOOD
P1: =SUMIF(Q10:Q1000000,Q1,H10:H100000) -> 0 | Q1: سنديان | AA1: كمية
P2: =SUMIF(Q11:Q1000001,Q2,H11:H100001) -> 0 | Q2: سنديان | AA2: قيمة
P3: =SUMIF(Q12:Q1000002,Q3,H12:H100002) -> 0
P4: =SUMIF(Q13:Q1000003,Q4,H13:H100003) -> 0
H7: =SUM(H10:H100000) -> 0 | M7: =SUM(M10:M100000) -> 0 | T7: =SUM(T10:T100000) -> 1.066 | Y7: 6491.94
B8: الرقم التسلسلى | C8: الحالة وارد | D8: الحالة الصادر | E8: الصنف | F8: الوحدة | G8: السعر | H8: الكمية | I8: الاجمالى | J8: الخصم | K8: الاجمالى بعد الخصم | L8: VAT 5% | M8: الاجمالى | N8: رقم الفاتورة | O8: تاريخ الفاتورة | P8: اسم المورد | Q8: الكود | R8: رقم امر الاستلام | S8: رقم اذن اصرف | T8: الكمية الصادرة | U8: الاجمالى | V8: الخصم | W8: الاجمالى بعد الخصم | X8: VAT 5% | Y8: الاجمالى | Z8: PO | AA8: اسم المشروع | AB8: ملاحظات
B9: 1 | C9: وارد | E9: AMERICAN SHERI BLACK WOOD 2" | F9: M3 | G9: 5800 | H9: 1.066 | I9: =G9*H9 -> 6182.8 | J9: 0 | K9: =I9-J9 -> 6182.8 | L9: =K9*5% -> 309.14 | M9: =L9+K9 -> 6491.94 | N9: INC-30651017 | O9: 2018-03-27 | P9: شركة مدار لمواد البناء | Q9: خشب شيري | R9: 116 | U9: =T9*G9 -> 0 | V9: 0 | W9: =U9-V9 -> 0 | X9: =W9*5% -> 0 | Y9: =X9+W9 -> 0
B10: =B9+1 -> 2 | D10: صرف | E10: AMERICAN SHERI BLACK WOOD 2" | F10: M3 | G10: 5800 | I10: 0 | J10: 0 | K10: 0 | L10: 0 | M10: 0 | N10: INC-30651017 | O10: 2018-03-27 | P10: شركة مدار لمواد البناء | Q10: خشب شيري | S10: 103 | T10: 1.066 | U10: 6182.8 | V10: 0 | W10: 6182.8 | X10: 309.14 | Y10: 6491.94 | Z10: 18-092 | AA10: الرازيات
B11: =B10+1 -> 3 | F11: M3 | I11: 0 | J11: 0 | K11: 0 | L11: 0 | M11: 0 | Q11: خشب شيري | U11: 0 | V11: 0 | W11: 0 | X11: 0 | Y11: 0
B12: 4 | F12: M3 | I12: 0 | J12: 0 | K12: 0 | L12: 0 | M12: 0 | Q12: خشب شيري | U12: 0 | V12: 0 | W12: 0 | X12: 0 | Y12: 0
B13: 5 | F13: M3 | I13: 0 | J13: 0 | K13: 0 | L13: 0 | M13: 0 | Q13: خشب شيري | U13: 0 | V13: 0 | W13: 0 | X13: 0 | Y13: 0
B14: 6 | F14: M3 | I14: 0 | J14: 0 | K14: 0 | L14: 0 | M14: 0 | Q14: خشب شيري | U14: 0 | V14: 0 | W14: 0 | X14: 0 | Y14: 0
B15: 7 | F15: M3 | I15: 0 | J15: 0 | K15: 0 | L15: 0 | M15: 0 | Q15: خشب شيري | U15: 0 | V15: 0 | W15: 0 | X15: 0 | Y15: 0
B16: 8 | F16: M3 | I16: 0 | J16: 0 | K16: 0 | L16: 0 | M16: 0 | Q16: خشب شيري | U16: 0 | V16: 0 | W16: 0 | X16: 0 | Y16: 0
B17: 9 | F17: M3 | I17: 0 | J17: 0 | K17: 0 | L17: 0 | M17: 0 | Q17: خشب شيري | U17: 0 | V17: 0 | W17: 0 | X17: 0 | Y17: 0
B18: 10 | F18: M3 | I18: 0 | J18: 0 | K18: 0 | L18: 0 | M18: 0 | Q18: خشب شيري | U18: 0 | V18: 0 | W18: 0 | X18: 0 | Y18: 0
B19: 11 | F19: M3 | I19: 0 | J19: 0 | K19: 0 | L19: 0 | M19: 0 | Q19: خشب شيري | U19: 0 | V19: 0 | W19: 0 | X19: 0 | Y19: 0
B20: 12 | F20: M3 | I20: 0 | J20: 0 | K20: 0 | L20: 0 | M20: 0 | Q20: خشب شيري | U20: 0 | V20: 0 | W20: 0 | X20: 0 | Y20: 0
B21: 13 | F21: M3 | I21: 0 | J21: 0 | K21: 0 | L21: 0 | M21: 0 | Q21: خشب شيري | U21: 0 | V21: 0 | W21: 0 | X21: 0 | Y21: 0
B22: 14 | F22: M3 | I22: 0 | J22: 0 | K22: 0 | L22: 0 | M22: 0 | Q22: خشب شيري | U22: 0 | V22: 0 | W22: 0 | X22: 0 | Y22: 0
B23: 15 | F23: M3 | I23: 0 | J23: 0 | K23: 0 | L23: 0 | M23: 0 | Q23: خشب شيري | U23: 0 | V23: 0 | W23: 0 | X23: 0 | Y23: 0
B24: =B23+1 -> 16 | F24: M3 | I24: 0 | J24: 0 | K24: 0 | L24: 0 | M24: 0 | Q24: خشب شيري | U24: 0 | V24: 0 | W24: 0 | X24: 0 | Y24: 0
B25: =B24+1 -> 17 | F25: M3 | I25: 0 | J25: 0 | K25: 0 | L25: 0 | M25: 0 | Q25: خشب شيري | U25: 0 | V25: 0 | W25: 0 | X25: 0 | Y25: 0
B26: 18 | F26: M3 | I26: 0 | J26: 0 | K26: 0 | L26: 0 | M26: 0 | Q26: خشب شيري | U26: 0 | V26: 0 | W26: 0 | X26: 0 | Y26: 0
B27: 19 | F27: M3 | I27: 0 | J27: 0 | K27: 0 | L27: 0 | M27: 0 | Q27: خشب شيري | U27: 0 | V27: 0 | W27: 0 | X27: 0 | Y27: 0
B28: 20 | F28: M3 | I28: 0 | J28: 0 | K28: 0 | L28: 0 | M28: 0 | Q28: خشب شيري | U28: 0 | V28: 0 | W28: 0 | X28: 0 | Y28: 0
B29: 21 | F29: M3 | I29: 0 | J29: 0 | K29: 0 | L29: 0 | M29: 0 | Q29: خشب شيري | U29: 0 | V29: 0 | W29: 0 | X29: 0 | Y29: 0
B30: 22 | F30: M3 | I30: 0 | J30: 0 | K30: 0 | L30: 0 | M30: 0 | Q30: خشب شيري | U30: 0 | V30: 0 | W30: 0 | X30: 0 | Y30: 0
B31: 23 | F31: M3 | I31: 0 | J31: 0 | K31: 0 | L31: 0 | M31: 0 | Q31: خشب شيري | U31: 0 | V31: 0 | W31: 0 | X31: 0 | Y31: 0
B32: 24 | F32: M3 | I32: 0 | J32: 0 | K32: 0 | L32: 0 | M32: 0 | Q32: خشب شيري | U32: 0 | V32: 0 | W32: 0 | X32: 0 | Y32: 0
B33: 25 | F33: M3 | I33: 0 | J33: 0 | K33: 0 | L33: 0 | M33: 0 | Q33: خشب شيري | U33: 0 | V33: 0 | W33: 0 | X33: 0 | Y33: 0
B34: 26 | F34: M3 | I34: 0 | J34: 0 | K34: 0 | L34: 0 | M34: 0 | Q34: خشب شيري | U34: 0 | V34: 0 | W34: 0 | X34: 0 | Y34: 0
B35: 27 | F35: M3 | I35: 0 | J35: 0 | K35: 0 | L35: 0 | M35: 0 | Q35: خشب شيري | U35: 0 | V35: 0 | W35: 0 | X35: 0 | Y35: 0
B36: 28 | F36: M3 | I36: 0 | J36: 0 | K36: 0 | L36: 0 | M36: 0 | Q36: خشب شيري | U36: 0 | V36: 0 | W36: 0 | X36: 0 | Y36: 0
B37: 29 | F37: M3 | I37: 0 | J37: 0 | K37: 0 | L37: 0 | M37: 0 | Q37: خشب شيري | U37: 0 | V37: 0 | W37: 0 | X37: 0 | Y37: 0
B38: 30 | F38: M3 | I38: 0 | J38: 0 | K38: 0 | L38: 0 | M38: 0 | Q38: خشب شيري | U38: 0 | V38: 0 | W38: 0 | X38: 0 | Y38: 0
B39: 31 | F39: M3 | I39: 0 | J39: 0 | K39: 0 | L39: 0 | M39: 0 | Q39: خشب شيري | U39: 0 | V39: 0 | W39: 0 | X39: 0 | Y39: 0
B40: 32 | F40: M3 | I40: 0 | J40: 0 | K40: 0 | L40: 0 | M40: 0 | Q40: خشب شيري | U40: 0 | V40: 0 | W40: 0 | X40: 0 | Y40: 0
B41: 33 | F41: M3 | I41: 0 | J41: 0 | K41: 0 | L41: 0 | M41: 0 | Q41: خشب شيري | U41: 0 | V41: 0 | W41: 0 | X41: 0 | Y41: 0
B42: 34 | F42: M3 | I42: 0 | J42: 0 | K42: 0 | L42: 0 | M42: 0 | Q42: خشب شيري | U42: 0 | V42: 0 | W42: 0 | X42: 0 | Y42: 0
B43: 35 | F43: M3 | I43: 0 | J43: 0 | K43: 0 | L43: 0 | M43: 0 | Q43: خشب شيري | U43: 0 | V43: 0 | W43: 0 | X43: 0 | Y43: 0
B44: 36 | F44: M3 | I44: 0 | J44: 0 | K44: 0 | L44: 0 | M44: 0 | Q44: خشب شيري | U44: 0 | V44: 0 | W44: 0 | X44: 0 | Y44: 0
B45: 37 | F45: M3 | I45: 0 | J45: 0 | K45: 0 | L45: 0 | M45: 0 | Q45: خشب شيري | U45: 0 | V45: 0 | W45: 0 | X45: 0 | Y45: 0
B46: 38 | F46: M3 | I46: 0 | J46: 0 | K46: 0 | L46: 0 | M46: 0 | Q46: خشب شيري | U46: 0 | V46: 0 | W46: 0 | X46: 0 | Y46: 0
B47: 39 | F47: M3 | I47: 0 | J47: 0 | K47: 0 | L47: 0 | M47: 0 | Q47: خشب شيري | U47: 0 | V47: 0 | W47: 0 | X47: 0 | Y47: 0
B48: 40 | F48: M3 | I48: 0 | J48: 0 | K48: 0 | L48: 0 | M48: 0 | Q48: خشب شيري | U48: 0 | V48: 0 | W48: 0 | X48: 0 | Y48: 0
B49: 41 | F49: M3 | I49: 0 | J49: 0 | K49: 0 | L49: 0 | M49: 0 | Q49: خشب شيري | U49: 0 | V49: 0 | W49: 0 | X49: 0 | Y49: 0
B50: 42 | F50: M3 | I50: 0 | J50: 0 | K50: 0 | L50: 0 | M50: 0 | Q50: خشب شيري | U50: 0 | V50: 0 | W50: 0 | X50: 0 | Y50: 0
B51: 43 | F51: M3 | I51: 0 | J51: 0 | K51: 0 | L51: 0 | M51: 0 | Q51: خشب شيري | U51: 0 | V51: 0 | W51: 0 | X51: 0 | Y51: 0
B52: 44 | F52: M3 | I52: 0 | J52: 0 | K52: 0 | L52: 0 | M52: 0 | Q52: خشب شيري | U52: 0 | V52: 0 | W52: 0 | X52: 0 | Y52: 0
B53: 45 | F53: M3 | I53: 0 | J53: 0 | K53: 0 | L53: 0 | M53: 0 | Q53: خشب شيري | U53: 0 | V53: 0 | W53: 0 | X53: 0 | Y53: 0
B54: 46 | F54: M3 | I54: 0 | J54: 0 | K54: 0 | L54: 0 | M54: 0 | Q54: خشب شيري | U54: 0 | V54: 0 | W54: 0 | X54: 0 | Y54: 0
B55: 47 | F55: M3 | I55: 0 | J55: 0 | K55: 0 | L55: 0 | M55: 0 | Q55: خشب شيري | U55: 0 | V55: 0 | W55: 0 | X55: 0 | Y55: 0
B56: 48 | F56: M3 | I56: 0 | J56: 0 | K56: 0 | L56: 0 | M56: 0 | Q56: خشب شيري | U56: 0 | V56: 0 | W56: 0 | X56: 0 | Y56: 0
B57: 49 | F57: M3 | I57: 0 | J57: 0 | K57: 0 | L57: 0 | M57: 0 | Q57: خشب شيري | U57: 0 | V57: 0 | W57: 0 | X57: 0 | Y57: 0
B58: 50 | F58: M3 | I58: 0 | J58: 0 | K58: 0 | L58: 0 | M58: 0 | Q58: خشب شيري | U58: 0 | V58: 0 | W58: 0 | X58: 0 | Y58: 0
B59: 51 | F59: M3 | I59: 0 | J59: 0 | K59: 0 | L59: 0 | M59: 0 | Q59: خشب شيري | U59: 0 | V59: 0 | W59: 0 | X59: 0 | Y59: 0
B60: 52 | F60: M3 | I60: 0 | J60: 0 | K60: 0 | L60: 0 | M60: 0 | Q60: خشب شيري | U60: 0 | V60: 0 | W60: 0 | X60: 0 | Y60: 0
B61: 53 | F61: M3 | I61: 0 | J61: 0 | K61: 0 | L61: 0 | M61: 0 | Q61: خشب شيري | U61: 0 | V61: 0 | W61: 0 | X61: 0 | Y61: 0
B62: 54 | F62: M3 | I62: 0 | J62: 0 | K62: 0 | L62: 0 | M62: 0 | Q62: خشب شيري | U62: 0 | V62: 0 | W62: 0 | X62: 0 | Y62: 0
B63: 55 | F63: M3 | I63: 0 | J63: 0 | K63: 0 | L63: 0 | M63: 0 | Q63: خشب شيري | U63: 0 | V63: 0 | W63: 0 | X63: 0 | Y63: 0
B64: 56 | F64: M3 | I64: 0 | J64: 0 | K64: 0 | L64: 0 | M64: 0 | Q64: خشب شيري | U64: 0 | V64: 0 | W64: 0 | X64: 0 | Y64: 0
B65: 57 | F65: M3 | I65: 0 | J65: 0 | K65: 0 | L65: 0 | M65: 0 | Q65: خشب شيري | U65: 0 | V65: 0 | W65: 0 | X65: 0 | Y65: 0
B66: 58 | F66: M3 | I66: 0 | J66: 0 | K66: 0 | L66: 0 | M66: 0 | Q66: خشب شيري | U66: 0 | V66: 0 | W66: 0 | X66: 0 | Y66: 0
B67: 59 | F67: M3 | I67: 0 | J67: 0 | K67: 0 | L67: 0 | M67: 0 | Q67: خشب شيري | U67: 0 | V67: 0 | W67: 0 | X67: 0 | Y67: 0
B68: 60 | F68: M3 | I68: 0 | J68: 0 | K68: 0 | L68: 0 | M68: 0 | Q68: خشب شيري | U68: 0 | V68: 0 | W68: 0 | X68: 0 | Y68: 0
B69: 61 | F69: M3 | I69: 0 | J69: 0 | K69: 0 | L69: 0 | M69: 0 | Q69: خشب شيري | U69: 0 | V69: 0 | W69: 0 | X69: 0 | Y69: 0
B70: 62 | F70: M3 | I70: 0 | J70: 0 | K70: 0 | L70: 0 | M70: 0 | Q70: خشب شيري | U70: 0 | V70: 0 | W70: 0 | X70: 0 | Y70: 0
B71: 63 | F71: M3 | I71: 0 | J71: 0 | K71: 0 | L71: 0 | M71: 0 | Q71: خشب شيري | U71: 0 | V71: 0 | W71: 0 | X71: 0 | Y71: 0
B72: 64 | F72: M3 | I72: 0 | J72: 0 | K72: 0 | L72: 0 | M72: 0 | Q72: خشب شيري | U72: 0 | V72: 0 | W72: 0 | X72: 0 | Y72: 0
B73: 65 | F73: M3 | I73: =G73*H73 -> 0 | J73: 0 | K73: =I73-J73 -> 0 | L73: =K73*5% -> 0 | M73: =L73+K73 -> 0 | Q73: خشب شيري | U73: =T73*G73 -> 0 | V73: 0 | W73: =U73-V73 -> 0 | X73: =W73*5% -> 0 | Y73: =X73+W73 -> 0
B74: 66 | F74: M3 | I74: =G74*H74 -> 0 | J74: 0 | K74: =I74-J74 -> 0 | L74: =K74*5% -> 0 | M74: =L74+K74 -> 0 | Q74: خشب شيري | U74: =T74*G74 -> 0 | V74: 0 | W74: =U74-V74 -> 0 | X74: =W74*5% -> 0 | Y74: =X74+W74 -> 0

Sheet TEAK-Veneer
P1: =SUMIF(Q9:Q999999,Q1,H9:H99999) -> 0 | Q1: سنديان | AA1: كمية
P2: =SUMIF(Q10:Q1000000,Q2,H10:H100000) -> 0 | Q2: سنديان | AA2: قيمة
P3: =SUMIF(Q11:Q1000001,Q3,H11:H100001) -> 0
P4: =SUMIF(Q12:Q1000002,Q4,H12:H100002) -> 0
H7: =SUM(H9:H99999) -> 263.062 | M7: =SUM(M9:M99999) -> 3569.4708 | T7: =SUM(T9:T99999) -> 141.686 | Y7: 1912.6884 | AA7: =H7-T7 -> 121.376
B8: الرقم التسلسلى | C8: الحالة وارد | D8: الحالة الصادر | E8: الصنف | F8: الوحدة | G8: السعر | H8: الكمية | I8: الاجمالى | J8: الخصم | K8: الاجمالى بعد الخصم | L8: VAT 5% | M8: الاجمالى | N8: رقم الفاتورة | O8: تاريخ الفاتورة | P8: اسم المورد | Q8: الكود | R8: رقم امر الاستلام | S8: رقم اذن اصرف | T8: الكمية الصادرة | U8: الاجمالى | V8: الخصم | W8: الاجمالى بعد الخصم | X8: VAT 5% | Y8: الاجمالى | Z8: PO | AA8: اسم المشروع | AB8: ملاحظات
B9: 1 | C9: وارد | E9: قشرة روكو (تيك) | F9: M2 | G9: 13 | H9: 121.376 | I9: =G9*H9 -> 1577.888 | J9: 0 | K9: =I9-J9 -> 1577.888 | L9: =K9*5% -> 78.8944 | M9: =L9+K9 -> 1656.7824 | N9: 2481 | P9: عالم الاخشاب | Q9: قشرة تيك | R9: 184 | U9: =T9*G9 -> 0 | V9: 0 | W9: =U9-V9 -> 0 | X9: =W9*5% -> 0 | Y9: =X9+W9 -> 0
B10: =B9+1 -> 2 | D10: صرف | E10: قشرة روكو (تيك) | F10: M2 | G10: 13 | H10: 121.376 | I10: =G10*H10 -> 1577.888 | J10: 0 | K10: =I10-J10 -> 1577.888 | L10: =K10*5% -> 78.8944 | M10: =L10+K10 -> 1656.7824 | N10: 57 | P10: عالم الاخشاب | Q10: قشرة تيك | R10: 184 | S10: 259 | T10: 121.376 | U10: 1577.888 | V10: 0 | W10: =U10-V10 -> 1577.888 | X10: =W10*5% -> 78.8944 | Y10: =X10+W10 -> 1656.7824 | Z10: 18-283 | AA10: عينات
B11: =B10+1 -> 3 | C11: وارد | E11: قشرة روكو (تيك) | F11: M2 | G11: 12 | H11: 20.31 | I11: =G11*H11 -> 243.72 | J11: 0 | K11: =I11-J11 -> 243.72 | L11: =K11*5% -> 12.186 | M11: =L11+K11 -> 255.906 | N11: 305 | O11: 2018-08-18 | P11: دار الوفاق | Q11: قشرة تيك | R11: 181 | U11: 0 | V11: 0 | W11: 0 | X11: 0 | Y11: 0
B12: 4 | D12: صرف | E12: قشرة روكو (تيك) | F12: M2 | G12: 12 | I12: 0 | J12: 0 | K12: 0 | L12: 0 | M12: 0 | N12: 305 | Q12: قشرة تيك | S12: 275 | T12: 20.31 | U12: 243.72 | V12: 0 | W12: 243.72 | X12: 12.186 | Y12: 255.906 | Z12: 18-356 | AA12: بن دايل
B13: 5 | F13: M2 | I13: 0 | J13: 0 | K13: 0 | L13: 0 | M13: 0 | Q13: قشرة تيك | U13: 0 | V13: 0 | W13: 0 | X13: 0 | Y13: 0
B14: 6 | F14: M2 | I14: 0 | J14: 0 | K14: 0 | L14: 0 | M14: 0 | Q14: قشرة تيك | U14: 0 | V14: 0 | W14: 0 | X14: 0 | Y14: 0
B15: 7 | F15: M2 | I15: 0 | J15: 0 | K15: 0 | L15: 0 | M15: 0 | Q15: قشرة تيك | U15: 0 | V15: 0 | W15: 0 | X15: 0 | Y15: 0
B16: 8 | F16: M2 | I16: 0 | J16: 0 | K16: 0 | L16: 0 | M16: 0 | Q16: قشرة تيك | U16: 0 | V16: 0 | W16: 0 | X16: 0 | Y16: 0
B17: 9 | F17: M2 | I17: 0 | J17: 0 | K17: 0 | L17: 0 | M17: 0 | Q17: قشرة تيك | U17: 0 | V17: 0 | W17: 0 | X17: 0 | Y17: 0
B18: 10 | F18: M2 | I18: 0 | J18: 0 | K18: 0 | L18: 0 | M18: 0 | Q18: قشرة تيك | U18: 0 | V18: 0 | W18: 0 | X18: 0 | Y18: 0
B19: 11 | F19: M2 | I19: 0 | J19: 0 | K19: 0 | L19: 0 | M19: 0 | Q19: قشرة تيك | U19: 0 | V19: 0 | W19: 0 | X19: 0 | Y19: 0
B20: 12 | F20: M2 | I20: 0 | J20: 0 | K20: 0 | L20: 0 | M20: 0 | Q20: قشرة تيك | U20: 0 | V20: 0 | W20: 0 | X20: 0 | Y20: 0
B21: 13 | F21: M2 | I21: 0 | J21: 0 | K21: 0 | L21: 0 | M21: 0 | Q21: قشرة تيك | U21: 0 | V21: 0 | W21: 0 | X21: 0 | Y21: 0
B22: 14 | F22: M2 | I22: 0 | J22: 0 | K22: 0 | L22: 0 | M22: 0 | Q22: قشرة تيك | U22: 0 | V22: 0 | W22: 0 | X22: 0 | Y22: 0
B23: 15 | F23: M2 | I23: 0 | J23: 0 | K23: 0 | L23: 0 | M23: 0 | Q23: قشرة تيك | U23: 0 | V23: 0 | W23: 0 | X23: 0 | Y23: 0
B24: =B23+1 -> 16 | F24: M2 | I24: 0 | J24: 0 | K24: 0 | L24: 0 | M24: 0 | Q24: قشرة تيك | U24: 0 | V24: 0 | W24: 0 | X24: 0 | Y24: 0
B25: =B24+1 -> 17 | F25: M2 | I25: 0 | J25: 0 | K25: 0 | L25: 0 | M25: 0 | Q25: قشرة تيك | U25: 0 | V25: 0 | W25: 0 | X25: 0 | Y25: 0
B26: 18 | F26: M2 | I26: 0 | J26: 0 | K26: 0 | L26: 0 | M26: 0 | Q26: قشرة تيك | U26: 0 | V26: 0 | W26: 0 | X26: 0 | Y26: 0
B27: 19 | F27: M2 | I27: 0 | J27: 0 | K27: 0 | L27: 0 | M27: 0 | Q27: قشرة تيك | U27: 0 | V27: 0 | W27: 0 | X27: 0 | Y27: 0
B28: 20 | F28: M2 | I28: 0 | J28: 0 | K28: 0 | L28: 0 | M28: 0 | Q28: قشرة تيك | U28: 0 | V28: 0 | W28: 0 | X28: 0 | Y28: 0
B29: 21 | F29: M2 | I29: 0 | J29: 0 | K29: 0 | L29: 0 | M29: 0 | Q29: قشرة تيك | U29: 0 | V29: 0 | W29: 0 | X29: 0 | Y29: 0
B30: 22 | F30: M2 | I30: 0 | J30: 0 | K30: 0 | L30: 0 | M30: 0 | Q30: قشرة تيك | U30: 0 | V30: 0 | W30: 0 | X30: 0 | Y30: 0
B31: 23 | F31: M2 | I31: 0 | J31: 0 | K31: 0 | L31: 0 | M31: 0 | Q31: قشرة تيك | U31: 0 | V31: 0 | W31: 0 | X31: 0 | Y31: 0
B32: 24 | F32: M2 | I32: 0 | J32: 0 | K32: 0 | L32: 0 | M32: 0 | Q32: قشرة تيك | U32: 0 | V32: 0 | W32: 0 | X32: 0 | Y32: 0
B33: 25 | F33: M2 | I33: 0 | J33: 0 | K33: 0 | L33: 0 | M33: 0 | Q33: قشرة تيك | U33: 0 | V33: 0 | W33: 0 | X33: 0 | Y33: 0
B34: 26 | F34: M2 | I34: 0 | J34: 0 | K34: 0 | L34: 0 | M34: 0 | Q34: قشرة تيك | U34: 0 | V34: 0 | W34: 0 | X34: 0 | Y34: 0
B35: 27 | F35: M2 | I35: 0 | J35: 0 | K35: 0 | L35: 0 | M35: 0 | Q35: قشرة تيك | U35: 0 | V35: 0 | W35: 0 | X35: 0 | Y35: 0
B36: 28 | F36: M2 | I36: 0 | J36: 0 | K36: 0 | L36: 0 | M36: 0 | Q36: قشرة تيك | U36: 0 | V36: 0 | W36: 0 | X36: 0 | Y36: 0
B37: 29 | F37: M2 | I37: 0 | J37: 0 | K37: 0 | L37: 0 | M37: 0 | Q37: قشرة تيك | U37: 0 | V37: 0 | W37: 0 | X37: 0 | Y37: 0
B38: 30 | F38: M2 | I38: 0 | J38: 0 | K38: 0 | L38: 0 | M38: 0 | Q38: قشرة تيك | U38: 0 | V38: 0 | W38: 0 | X38: 0 | Y38: 0
B39: 31 | F39: M2 | I39: 0 | J39: 0 | K39: 0 | L39: 0 | M39: 0 | Q39: قشرة تيك | U39: 0 | V39: 0 | W39: 0 | X39: 0 | Y39: 0
B40: 32 | F40: M2 | I40: 0 | J40: 0 | K40: 0 | L40: 0 | M40: 0 | Q40: قشرة تيك | U40: 0 | V40: 0 | W40: 0 | X40: 0 | Y40: 0
B41: 33 | F41: M2 | I41: 0 | J41: 0 | K41: 0 | L41: 0 | M41: 0 | Q41: قشرة تيك | U41: =T41*G41 -> 0 | V41: 0 | W41: 0 | X41: 0 | Y41: 0
B42: 34 | F42: M2 | I42: 0 | J42: 0 | K42: 0 | L42: 0 | M42: 0 | Q42: قشرة تيك | U42: 0 | V42: 0 | W42: 0 | X42: 0 | Y42: 0
B43: 35 | F43: M2 | I43: 0 | J43: 0 | K43: 0 | L43: 0 | M43: 0 | Q43: قشرة تيك | U43: 0 | V43: 0 | W43: 0 | X43: 0 | Y43: 0
B44: 36 | F44: M2 | I44: 0 | J44: 0 | K44: 0 | L44: 0 | M44: 0 | Q44: قشرة تيك | U44: 0 | V44: 0 | W44: 0 | X44: 0 | Y44: 0
B45: 37 | F45: M2 | I45: 0 | J45: 0 | K45: 0 | L45: 0 | M45: 0 | Q45: قشرة تيك | U45: 0 | V45: 0 | W45: 0 | X45: 0 | Y45: 0
B46: 38 | F46: M2 | I46: 0 | J46: 0 | K46: 0 | L46: 0 | M46: 0 | Q46: قشرة تيك | U46: 0 | V46: 0 | W46: 0 | X46: 0 | Y46: 0
B47: 39 | F47: M2 | I47: 0 | J47: 0 | K47: 0 | L47: 0 | M47: 0 | Q47: قشرة تيك | U47: 0 | V47: 0 | W47: 0 | X47: 0 | Y47: 0
B48: 40 | F48: M2 | I48: 0 | J48: 0 | K48: 0 | L48: 0 | M48: 0 | Q48: قشرة تيك | U48: 0 | V48: 0 | W48: 0 | X48: 0 | Y48: 0
B49: 41 | F49: M2 | I49: 0 | J49: 0 | K49: 0 | L49: 0 | M49: 0 | Q49: قشرة تيك | U49: 0 | V49: 0 | W49: 0 | X49: 0 | Y49: 0
B50: 42 | F50: M2 | I50: 0 | J50: 0 | K50: 0 | L50: 0 | M50: 0 | Q50: قشرة تيك | U50: 0 | V50: 0 | W50: 0 | X50: 0 | Y50: 0
B51: 43 | F51: M2 | I51: 0 | J51: 0 | K51: 0 | L51: 0 | M51: 0 | Q51: قشرة تيك | U51: 0 | V51: 0 | W51: 0 | X51: 0 | Y51: 0
B52: 44 | F52: M2 | I52: 0 | J52: 0 | K52: 0 | L52: 0 | M52: 0 | Q52: قشرة تيك | U52: 0 | V52: 0 | W52: 0 | X52: 0 | Y52: 0
B53: 45 | F53: M2 | I53: 0 | J53: 0 | K53: 0 | L53: 0 | M53: 0 | Q53: قشرة تيك | U53: 0 | V53: 0 | W53: 0 | X53: 0 | Y53: 0
B54: 46 | F54: M2 | I54: 0 | J54: 0 | K54: 0 | L54: 0 | M54: 0 | Q54: قشرة تيك | U54: 0 | V54: 0 | W54: 0 | X54: 0 | Y54: 0
B55: 47 | F55: M2 | I55: 0 | J55: 0 | K55: 0 | L55: 0 | M55: 0 | Q55: قشرة تيك | U55: 0 | V55: 0 | W55: 0 | X55: 0 | Y55: 0
B56: 48 | F56: M2 | I56: 0 | J56: 0 | K56: 0 | L56: 0 | M56: 0 | Q56: قشرة تيك | U56: 0 | V56: 0 | W56: 0 | X56: 0 | Y56: 0
B57: 49 | F57: M2 | I57: 0 | J57: 0 | K57: 0 | L57: 0 | M57: 0 | Q57: قشرة تيك | U57: 0 | V57: 0 | W57: 0 | X57: 0 | Y57: 0
B58: 50 | F58: M2 | I58: 0 | J58: 0 | K58: 0 | L58: 0 | M58: 0 | Q58: قشرة تيك | U58: 0 | V58: 0 | W58: 0 | X58: 0 | Y58: 0
B59: 51 | F59: M2 | I59: 0 | J59: 0 | K59: 0 | L59: 0 | M59: 0 | Q59: قشرة تيك | U59: 0 | V59: 0 | W59: 0 | X59: 0 | Y59: 0
B60: 52 | F60: M2 | I60: 0 | J60: 0 | K60: 0 | L60: 0 | M60: 0 | Q60: قشرة تيك | U60: 0 | V60: 0 | W60: 0 | X60: 0 | Y60: 0
B61: 53 | F61: M2 | I61: 0 | J61: 0 | K61: 0 | L61: 0 | M61: 0 | Q61: قشرة تيك | U61: 0 | V61: 0 | W61: 0 | X61: 0 | Y61: 0
B62: 54 | F62: M2 | I62: 0 | J62: 0 | K62: 0 | L62: 0 | M62: 0 | Q62: قشرة تيك | U62: 0 | V62: 0 | W62: 0 | X62: 0 | Y62: 0
B63: 55 | F63: M2 | I63: 0 | J63: 0 | K63: 0 | L63: 0 | M63: 0 | Q63: قشرة تيك | U63: 0 | V63: 0 | W63: 0 | X63: 0 | Y63: 0
B64: 56 | F64: M2 | I64: 0 | J64: 0 | K64: 0 | L64: 0 | M64: 0 | Q64: قشرة تيك | U64: 0 | V64: 0 | W64: 0 | X64: 0 | Y64: 0
B65: 57 | F65: M2 | I65: 0 | J65: 0 | K65: 0 | L65: 0 | M65: 0 | Q65: قشرة تيك | U65: 0 | V65: 0 | W65: 0 | X65: 0 | Y65: 0
B66: 58 | F66: M2 | I66: 0 | J66: 0 | K66: 0 | L66: 0 | M66: 0 | Q66: قشرة تيك | U66: 0 | V66: 0 | W66: 0 | X66: 0 | Y66: 0
B67: 59 | F67: M2 | I67: 0 | J67: 0 | K67: 0 | L67: 0 | M67: 0 | Q67: قشرة تيك | U67: 0 | V67: 0 | W67: 0 | X67: 0 | Y67: 0
B68: 60 | F68: M2 | I68: 0 | J68: 0 | K68: 0 | L68: 0 | M68: 0 | Q68: قشرة تيك | U68: 0 | V68: 0 | W68: 0 | X68: 0 | Y68: 0
B69: 61 | F69: M2 | I69: 0 | J69: 0 | K69: 0 | L69: 0 | M69: 0 | Q69: قشرة تيك | U69: 0 | V69: 0 | W69: 0 | X69: 0 | Y69: 0
B70: 62 | F70: M2 | I70: 0 | J70: 0 | K70: 0 | L70: 0 | M70: 0 | Q70: قشرة تيك | U70: 0 | V70: 0 | W70: 0 | X70: 0 | Y70: 0
B71: 63 | F71: M2 | I71: 0 | J71: 0 | K71: 0 | L71: 0 | M71: 0 | Q71: قشرة تيك | U71: 0 | V71: 0 | W71: 0 | X71: 0 | Y71: 0
B72: 64 | F72: M2 | I72: 0 | J72: 0 | K72: 0 | L72: 0 | M72: 0 | Q72: قشرة تيك | U72: 0 | V72: 0 | W72: 0 | X72: 0 | Y72: 0
B73: 65 | F73: M2 | I73: 0 | J73: 0 | K73: 0 | L73: 0 | M73: 0 | Q73: قشرة تيك | U73: =T73*G73 -> 0 | V73: 0 | W73: 0 | X73: 0 | Y73: 0

Sheet TEAK-WOOD
P1: =SUMIF(Q10:Q1000000,Q1,H10:H100000) -> 0 | Q1: سنديان | AA1: كمية
P2: =SUMIF(Q11:Q1000001,Q2,H11:H100001) -> 0 | Q2: سنديان | AA2: قيمة
P3: =SUMIF(Q12:Q1000002,Q3,H12:H100002) -> 0
P4: =SUMIF(Q13:Q1000003,Q4,H13:H100003) -> 0
H7: =SUM(H10:H100000) -> 7.69 | M7: =SUM(M10:M100000) -> 37658.04 | T7: =SUM(T10:T100000) -> 2.687 | Y7: 12038.145
B8: الرقم التسلسلى | C8: الحالة وارد | D8: الحالة الصادر | E8: الصنف | F8: الوحدة | G8: السعر | H8: الكمية | I8: الاجمالى | J8: الخصم | K8: الاجمالى بعد الخصم | L8: VAT 5% | M8: الاجمالى | N8: رقم الفاتورة | O8: تاريخ الفاتورة | P8: اسم المورد | Q8: الكود | R8: رقم امر الاستلام | S8: رقم اذن اصرف | T8: الكمية الصادرة | U8: الاجمالى | V8: الخصم | W8: الاجمالى بعد الخصم | X8: VAT 5% | Y8: الاجمالى | Z8: PO | AA8: اسم المشروع | AB8: رصيد اول المدة
B9: 1 | C9: وارد | E9: تيك مجفف 3" | F9: M3 | G9: 5300 | H9: 0.043 | I9: =G9*H9 -> 227.9 | J9: 0 | K9: =I9-J9 -> 227.9 | L9: =K9*5% -> 11.395 | M9: =L9+K9 -> 239.295 | N9: 01-22022 | O9: 2018-04-14 | P9: دار النماء | Q9: خشب شيري | R9: 42 | U9: =T9*G9 -> 0 | V9: 0 | W9: =U9-V9 -> 0 | X9: =W9*5% -> 0 | Y9: =X9+W9 -> 0
B10: =B9+1 -> 2 | D10: صرف | E10: تيك مجفف 3" | F10: M3 | G10: 5300 | I10: 0 | J10: 0 | K10: 0 | L10: 0 | M10: 0 | N10: 01-22022 | O10: 2018-04-14 | P10: دار النماء | Q10: خشب شيري | S10: 53 | T10: 0.043 | U10: 227.9 | V10: 0 | W10: 227.9 | X10: 11.395 | Y10: 239.295 | Z10: SAM | AA10: غيانات
B11: =B10+1 -> 3 | C11: وارد | E11: خشب ايروكو 2" (خشب تيك) | F11: M3 | G11: 4250 | H11: 2.644 | I11: 11237 | J11: 0 | K11: 11237 | L11: 561.85 | M11: 11798.85 | N11: 2481 | O11: 2018-05-17 | P11: عالم الاخشاب | Q11: خشب شيري | R11: 184 | U11: 0 | V11: 0 | W11: 0 | X11: 0 | Y11: 0
B12: 4 | D12: صرف | E12: خشب ايروكو 2" (خشب تيك) | F12: M3 | G12: 4250 | I12: 0 | J12: 0 | K12: 0 | L12: 0 | M12: 0 | N12: 57 | O12: 2018-05-17 | P12: عالم الاخشاب | Q12: خشب شيري | S12: 259 | T12: 2.644 | U12: 11237 | V12: 0 | W12: 11237 | X12: 561.85 | Y12: 11798.85 | Z12: 18-283 | AA12: غيانات
B13: 5 | C13: وارد | E13: خشب تيك عادي اروكو 2" | F13: M3 | G13: 4500 | H13: 2.645 | I13: 11902.5 | J13: 0 | K13: 11902.5 | L13: 595.125 | M13: 12497.625 | N13: 01-27537 | O13: 2018-09-04 | P13: دار النماء | Q13: خشب شيري | R13: 221 | U13: 0 | V13: 0 | W13: 0 | X13: 0 | Y13: 0
B14: 6 | D14: صرف | E14: خشب تيك عادي اروكو 2" | F14: M3 | G14: 4500 | I14: 0 | J14: 0 | K14: 0 | L14: 0 | M14: 0 | N14: 01-27537 | O14: 2018-09-04 | P14: دار النماء | Q14: خشب شيري | U14: 0 | V14: 0 | W14: 0 | X14: 0 | Y14: 0
B15: 7 | C15: وارد | E15: خشب تيك 2" | F15: M3 | G15: 5300 | H15: 2.401 | I15: 12725.3 | J15: 0 | K15: 12725.3 | L15: 636.265 | M15: 13361.565 | N15: INC-30652521 | O15: 2018-09-11 | P15: شركة مدار لمواد البناء | Q15: خشب شيري | U15: 0 | V15: 0 | W15: 0 | X15: 0 | Y15: 0
B16: 8 | D16: صرف | E16: خشب تيك 2" | F16: M3 | G16: 5300 | I16: 0 | J16: 0 | K16: 0 | L16: 0 | M16: 0 | N16: INC-30652521 | O16: 2018-09-11 | P16: شركة مدار لمواد البناء | Q16: خشب شيري | U16: 0 | V16: 0 | W16: 0 | X16: 0 | Y16: 0
B17: 9 | F17: M3 | I17: 0 | J17: 0 | K17: 0 | L17: 0 | M17: 0 | Q17: خشب شيري | U17: 0 | V17: 0 | W17: 0 | X17: 0 | Y17: 0
B18: 10 | F18: M3 | I18: 0 | J18: 0 | K18: 0 | L18: 0 | M18: 0 | Q18: خشب شيري | U18: 0 | V18: 0 | W18: 0 | X18: 0 | Y18: 0
B19: 11 | F19: M3 | I19: 0 | J19: 0 | K19: 0 | L19: 0 | M19: 0 | Q19: خشب شيري | U19: 0 | V19: 0 | W19: 0 | X19: 0 | Y19: 0
B20: 12 | F20: M3 | I20: 0 | J20: 0 | K20: 0 | L20: 0 | M20: 0 | Q20: خشب شيري | U20: 0 | V20: 0 | W20: 0 | X20: 0 | Y20: 0
B21: 13 | F21: M3 | I21: 0 | J21: 0 | K21: 0 | L21: 0 | M21: 0 | Q21: خشب شيري | U21: 0 | V21: 0 | W21: 0 | X21: 0 | Y21: 0
B22: 14 | F22: M3 | I22: 0 | J22: 0 | K22: 0 | L22: 0 | M22: 0 | Q22: خشب شيري | U22: 0 | V22: 0 | W22: 0 | X22: 0 | Y22: 0
B23: 15 | F23: M3 | I23: 0 | J23: 0 | K23: 0 | L23: 0 | M23: 0 | Q23: خشب شيري | U23: 0 | V23: 0 | W23: 0 | X23: 0 | Y23: 0
B24: =B23+1 -> 16 | F24: M3 | I24: 0 | J24: 0 | K24: 0 | L24: 0 | M24: 0 | Q24: خشب شيري | U24: 0 | V24: 0 | W24: 0 | X24: 0 | Y24: 0
B25: =B24+1 -> 17 | F25: M3 | I25: 0 | J25: 0 | K25: 0 | L25: 0 | M25: 0 | Q25: خشب شيري | U25: 0 | V25: 0 | W25: 0 | X25: 0 | Y25: 0
B26: 18 | F26: M3 | I26: 0 | J26: 0 | K26: 0 | L26: 0 | M26: 0 | Q26: خشب شيري | U26: 0 | V26: 0 | W26: 0 | X26: 0 | Y26: 0
B27: 19 | F27: M3 | I27: 0 | J27: 0 | K27: 0 | L27: 0 | M27: 0 | Q27: خشب شيري | U27: 0 | V27: 0 | W27: 0 | X27: 0 | Y27: 0
B28: 20 | F28: M3 | I28: 0 | J28: 0 | K28: 0 | L28: 0 | M28: 0 | Q28: خشب شيري | U28: 0 | V28: 0 | W28: 0 | X28: 0 | Y28: 0
B29: 21 | F29: M3 | I29: 0 | J29: 0 | K29: 0 | L29: 0 | M29: 0 | Q29: خشب شيري | U29: 0 | V29: 0 | W29: 0 | X29: 0 | Y29: 0
B30: 22 | F30: M3 | I30: 0 | J30: 0 | K30: 0 | L30: 0 | M30: 0 | Q30: خشب شيري | U30: 0 | V30: 0 | W30: 0 | X30: 0 | Y30: 0
B31: 23 | F31: M3 | I31: 0 | J31: 0 | K31: 0 | L31: 0 | M31: 0 | Q31: خشب شيري | U31: 0 | V31: 0 | W31: 0 | X31: 0 | Y31: 0
B32: 24 | F32: M3 | I32: 0 | J32: 0 | K32: 0 | L32: 0 | M32: 0 | Q32: خشب شيري | U32: 0 | V32: 0 | W32: 0 | X32: 0 | Y32: 0
B33: 25 | F33: M3 | I33: 0 | J33: 0 | K33: 0 | L33: 0 | M33: 0 | Q33: خشب شيري | U33: 0 | V33: 0 | W33: 0 | X33: 0 | Y33: 0
B34: 26 | F34: M3 | I34: 0 | J34: 0 | K34: 0 | L34: 0 | M34: 0 | Q34: خشب شيري | U34: 0 | V34: 0 | W34: 0 | X34: 0 | Y34: 0
B35: 27 | F35: M3 | I35: 0 | J35: 0 | K35: 0 | L35: 0 | M35: 0 | Q35: خشب شيري | U35: 0 | V35: 0 | W35: 0 | X35: 0 | Y35: 0
B36: 28 | F36: M3 | I36: 0 | J36: 0 | K36: 0 | L36: 0 | M36: 0 | Q36: خشب شيري | U36: 0 | V36: 0 | W36: 0 | X36: 0 | Y36: 0
B37: 29 | F37: M3 | I37: 0 | J37: 0 | K37: 0 | L37: 0 | M37: 0 | Q37: خشب شيري | U37: 0 | V37: 0 | W37: 0 | X37: 0 | Y37: 0
B38: 30 | F38: M3 | I38: 0 | J38: 0 | K38: 0 | L38: 0 | M38: 0 | Q38: خشب شيري | U38: 0 | V38: 0 | W38: 0 | X38: 0 | Y38: 0
B39: 31 | F39: M3 | I39: 0 | J39: 0 | K39: 0 | L39: 0 | M39: 0 | Q39: خشب شيري | U39: 0 | V39: 0 | W39: 0 | X39: 0 | Y39: 0
B40: 32 | F40: M3 | I40: 0 | J40: 0 | K40: 0 | L40: 0 | M40: 0 | Q40: خشب شيري | U40: 0 | V40: 0 | W40: 0 | X40: 0 | Y40: 0
B41: 33 | F41: M3 | I41: 0 | J41: 0 | K41: 0 | L41: 0 | M41: 0 | Q41: خشب شيري | U41: 0 | V41: 0 | W41: 0 | X41: 0 | Y41: 0
B42: 34 | F42: M3 | I42: 0 | J42: 0 | K42: 0 | L42: 0 | M42: 0 | Q42: خشب شيري | U42: 0 | V42: 0 | W42: 0 | X42: 0 | Y42: 0
B43: 35 | F43: M3 | I43: 0 | J43: 0 | K43: 0 | L43: 0 | M43: 0 | Q43: خشب شيري | U43: 0 | V43: 0 | W43: 0 | X43: 0 | Y43: 0
B44: 36 | F44: M3 | I44: 0 | J44: 0 | K44: 0 | L44: 0 | M44: 0 | Q44: خشب شيري | U44: 0 | V44: 0 | W44: 0 | X44: 0 | Y44: 0
B45: 37 | F45: M3 | I45: 0 | J45: 0 | K45: 0 | L45: 0 | M45: 0 | Q45: خشب شيري | U45: 0 | V45: 0 | W45: 0 | X45: 0 | Y45: 0
B46: 38 | F46: M3 | I46: 0 | J46: 0 | K46: 0 | L46: 0 | M46: 0 | Q46: خشب شيري | U46: 0 | V46: 0 | W46: 0 | X46: 0 | Y46: 0
B47: 39 | F47: M3 | I47: 0 | J47: 0 | K47: 0 | L47: 0 | M47: 0 | Q47: خشب شيري | U47: 0 | V47: 0 | W47: 0 | X47: 0 | Y47: 0
B48: 40 | F48: M3 | I48: 0 | J48: 0 | K48: 0 | L48: 0 | M48: 0 | Q48: خشب شيري | U48: 0 | V48: 0 | W48: 0 | X48: 0 | Y48: 0
B49: 41 | F49: M3 | I49: 0 | J49: 0 | K49: 0 | L49: 0 | M49: 0 | Q49: خشب شيري | U49: 0 | V49: 0 | W49: 0 | X49: 0 | Y49: 0
B50: 42 | F50: M3 | I50: 0 | J50: 0 | K50: 0 | L50: 0 | M50: 0 | Q50: خشب شيري | U50: 0 | V50: 0 | W50: 0 | X50: 0 | Y50: 0
B51: 43 | F51: M3 | I51: 0 | J51: 0 | K51: 0 | L51: 0 | M51: 0 | Q51: خشب شيري | U51: 0 | V51: 0 | W51: 0 | X51: 0 | Y51: 0
B52: 44 | F52: M3 | I52: 0 | J52: 0 | K52: 0 | L52: 0 | M52: 0 | Q52: خشب شيري | U52: 0 | V52: 0 | W52: 0 | X52: 0 | Y52: 0
B53: 45 | F53: M3 | I53: 0 | J53: 0 | K53: 0 | L53: 0 | M53: 0 | Q53: خشب شيري | U53: 0 | V53: 0 | W53: 0 | X53: 0 | Y53: 0
B54: 46 | F54: M3 | I54: 0 | J54: 0 | K54: 0 | L54: 0 | M54: 0 | Q54: خشب شيري | U54: 0 | V54: 0 | W54: 0 | X54: 0 | Y54: 0
B55: 47 | F55: M3 | I55: 0 | J55: 0 | K55: 0 | L55: 0 | M55: 0 | Q55: خشب شيري | U55: 0 | V55: 0 | W55: 0 | X55: 0 | Y55: 0
B56: 48 | F56: M3 | I56: 0 | J56: 0 | K56: 0 | L56: 0 | M56: 0 | Q56: خشب شيري | U56: 0 | V56: 0 | W56: 0 | X56: 0 | Y56: 0
B57: 49 | F57: M3 | I57: 0 | J57: 0 | K57: 0 | L57: 0 | M57: 0 | Q57: خشب شيري | U57: 0 | V57: 0 | W57: 0 | X57: 0 | Y57: 0
B58: 50 | F58: M3 | I58: 0 | J58: 0 | K58: 0 | L58: 0 | M58: 0 | Q58: خشب شيري | U58: 0 | V58: 0 | W58: 0 | X58: 0 | Y58: 0
B59: 51 | F59: M3 | I59: 0 | J59: 0 | K59: 0 | L59: 0 | M59: 0 | Q59: خشب شيري | U59: 0 | V59: 0 | W59: 0 | X59: 0 | Y59: 0
B60: 52 | F60: M3 | I60: 0 | J60: 0 | K60: 0 | L60: 0 | M60: 0 | Q60: خشب شيري | U60: 0 | V60: 0 | W60: 0 | X60: 0 | Y60: 0
B61: 53 | F61: M3 | I61: 0 | J61: 0 | K61: 0 | L61: 0 | M61: 0 | Q61: خشب شيري | U61: 0 | V61: 0 | W61: 0 | X61: 0 | Y61: 0
B62: 54 | F62: M3 | I62: 0 | J62: 0 | K62: 0 | L62: 0 | M62: 0 | Q62: خشب شيري | U62: 0 | V62: 0 | W62: 0 | X62: 0 | Y62: 0
B63: 55 | F63: M3 | I63: 0 | J63: 0 | K63: 0 | L63: 0 | M63: 0 | Q63: خشب شيري | U63: 0 | V63: 0 | W63: 0 | X63: 0 | Y63: 0
B64: 56 | F64: M3 | I64: 0 | J64: 0 | K64: 0 | L64: 0 | M64: 0 | Q64: خشب شيري | U64: 0 | V64: 0 | W64: 0 | X64: 0 | Y64: 0
B65: 57 | F65: M3 | I65: 0 | J65: 0 | K65: 0 | L65: 0 | M65: 0 | Q65: خشب شيري | U65: 0 | V65: 0 | W65: 0 | X65: 0 | Y65: 0
B66: 58 | F66: M3 | I66: 0 | J66: 0 | K66: 0 | L66: 0 | M66: 0 | Q66: خشب شيري | U66: 0 | V66: 0 | W66: 0 | X66: 0 | Y66: 0
B67: 59 | F67: M3 | I67: 0 | J67: 0 | K67: 0 | L67: 0 | M67: 0 | Q67: خشب شيري | U67: 0 | V67: 0 | W67: 0 | X67: 0 | Y67: 0
B68: 60 | F68: M3 | I68: 0 | J68: 0 | K68: 0 | L68: 0 | M68: 0 | Q68: خشب شيري | U68: 0 | V68: 0 | W68: 0 | X68: 0 | Y68: 0
B69: 61 | F69: M3 | I69: 0 | J69: 0 | K69: 0 | L69: 0 | M69: 0 | Q69: خشب شيري | U69: 0 | V69: 0 | W69: 0 | X69: 0 | Y69: 0
B70: 62 | F70: M3 | I70: 0 | J70: 0 | K70: 0 | L70: 0 | M70: 0 | Q70: خشب شيري | U70: 0 | V70: 0 | W70: 0 | X70: 0 | Y70: 0
B71: 63 | F71: M3 | I71: 0 | J71: 0 | K71: 0 | L71: 0 | M71: 0 | Q71: خشب شيري | U71: 0 | V71: 0 | W71: 0 | X71: 0 | Y71: 0
B72: 64 | F72: M3 | I72: 0 | J72: 0 | K72: 0 | L72: 0 | M72: 0 | Q72: خشب شيري | U72: 0 | V72: 0 | W72: 0 | X72: 0 | Y72: 0
B73: 65 | F73: M3 | I73: =G73*H73 -> 0 | J73: 0 | K73: =I73-J73 -> 0 | L73: =K73*5% -> 0 | M73: =L73+K73 -> 0 | Q73: خشب شيري | U73: =T73*G73 -> 0 | V73: 0 | W73: =U73-V73 -> 0 | X73: =W73*5% -> 0 | Y73: =X73+W73 -> 0
B74: 66 | F74: M3 | I74: =G74*H74 -> 0 | J74: 0 | K74: =I74-J74 -> 0 | L74: =K74*5% -> 0 | M74: =L74+K74 -> 0 | Q74: خشب شيري | U74: =T74*G74 -> 0 | V74: 0 | W74: =U74-V74 -> 0 | X74: =W74*5% -> 0 | Y74: =X74+W74 -> 0

Sheet Cherry-Veneer
P1: =SUMIF(Q9:Q999999,Q1,H9:H99999) -> 0 | Q1: سنديان | AA1: كمية
P2: =SUMIF(Q10:Q1000000,Q2,H10:H100000) -> 0 | Q2: سنديان | AA2: قيمة
P3: =SUMIF(Q11:Q1000001,Q3,H11:H100001) -> 0
P4: =SUMIF(Q12:Q1000002,Q4,H12:H100002) -> 0
H7: =SUM(H9:H99999) -> 239.45 | M7: =SUM(M9:M99999) -> 3771.3375 | T7: =SUM(T9:T99999) -> 239.45 | Y7: 3771.3375
B8: الرقم التسلسلى | C8: الحالة وارد | D8: الحالة الصادر | E8: الصنف | F8: الوحدة | G8: السعر | H8: الكمية | I8: الاجمالى | J8: الخصم | K8: الاجمالى بعد الخصم | L8: VAT 5% | M8: الاجمالى | N8: رقم الفاتورة | O8: تاريخ الفاتورة | P8: اسم المورد | Q8: الكود | R8: رقم امر الاستلام | S8: رقم اذن اصرف | T8: الكمية الصادرة | U8: الاجمالى | V8: الخصم | W8: الاجمالى بعد الخصم | X8: VAT 5% | Y8: الاجمالى | Z8: PO | AA8: اسم المشروع | AB8: ملاحظات
B9: 1 | C9: وارد | E9: قشرة شري مفجر | F9: M2 | G9: 15 | H9: 239.45 | I9: =G9*H9 -> 3591.75 | J9: 0 | K9: =I9-J9 -> 3591.75 | L9: =K9*5% -> 179.5875 | M9: =L9+K9 -> 3771.3375 | N9: 95 | O9: 2018-03-26 | P9: دار الوفاق | Q9: قشرة شري | R9: 8 | U9: =T9*G9 -> 0 | V9: 0 | W9: =U9-V9 -> 0 | X9: =W9*5% -> 0 | Y9: =X9+W9 -> 0
B10: =B9+1 -> 2 | D10: صرف | E10: قشرة شري مفجر | F10: M2 | G10: 15 | I10: =G10*H10 -> 0 | J10: 0 | K10: =I10-J10 -> 0 | L10: =K10*5% -> 0 | M10: =L10+K10 -> 0 | N10: 57 | O10: 2018-03-26 | P10: دار الوفاق | Q10: قشرة شري | S10: 8 | T10: 239.45 | U10: =T10*G10 -> 3591.75 | V10: 0 | W10: =U10-V10 -> 3591.75 | X10: =W10*5% -> 179.5875 | Y10: =X10+W10 -> 3771.3375 | Z10: 18-092 | AA10: الرازيات
B11: =B10+1 -> 3 | C11: وارد | F11: M2 | I11: 0 | J11: 0 | K11: 0 | L11: 0 | M11: 0 | Q11: قشرة شري | U11: 0 | V11: 0 | W11: 0 | X11: 0 | Y11: 0
B12: 4 | F12: M2 | I12: 0 | J12: 0 | K12: 0 | L12: 0 | M12: 0 | Q12: قشرة شري | U12: 0 | V12: 0 | W12: 0 | X12: 0 | Y12: 0
B13: 5 | F13: M2 | I13: 0 | J13: 0 | K13: 0 | L13: 0 | M13: 0 | Q13: قشرة شري | U13: 0 | V13: 0 | W13: 0 | X13: 0 | Y13: 0
B14: 6 | F14: M2 | I14: 0 | J14: 0 | K14: 0 | L14: 0 | M14: 0 | Q14: قشرة شري | U14: 0 | V14: 0 | W14: 0 | X14: 0 | Y14: 0
B15: 7 | F15: M2 | I15: 0 | J15: 0 | K15: 0 | L15: 0 | M15: 0 | Q15: قشرة شري | U15: 0 | V15: 0 | W15: 0 | X15: 0 | Y15: 0
B16: 8 | F16: M2 | I16: 0 | J16: 0 | K16: 0 | L16: 0 | M16: 0 | Q16: قشرة شري | U16: 0 | V16: 0 | W16: 0 | X16: 0 | Y16: 0
B17: 9 | F17: M2 | I17: 0 | J17: 0 | K17: 0 | L17: 0 | M17: 0 | Q17: قشرة شري | U17: 0 | V17: 0 | W17: 0 | X17: 0 | Y17: 0
B18: 10 | F18: M2 | I18: 0 | J18: 0 | K18: 0 | L18: 0 | M18: 0 | Q18: قشرة شري | U18: 0 | V18: 0 | W18: 0 | X18: 0 | Y18: 0
B19: 11 | F19: M2 | I19: 0 | J19: 0 | K19: 0 | L19: 0 | M19: 0 | U19: 0 | V19: 0 | W19: 0 | X19: 0 | Y19: 0
B20: 12 | I20: 0 | J20: 0 | K20: 0 | L20: 0 | M20: 0 | U20: 0 | V20: 0 | W20: 0 | X20: 0 | Y20: 0
B21: 13 | I21: 0 | J21: 0 | K21: 0 | L21: 0 | M21: 0 | U21: 0 | V21: 0 | W21: 0 | X21: 0 | Y21: 0
B22: 14 | I22: 0 | J22: 0 | K22: 0 | L22: 0 | M22: 0 | U22: 0 | V22: 0 | W22: 0 | X22: 0 | Y22: 0
B23: 15 | I23: 0 | J23: 0 | K23: 0 | L23: 0 | M23: 0 | U23: 0 | V23: 0 | W23: 0 | X23: 0 | Y23: 0
B24: =B23+1 -> 16 | I24: 0 | J24: 0 | K24: 0 | L24: 0 | M24: 0 | U24: 0 | V24: 0 | W24: 0 | X24: 0 | Y24: 0
B25: =B24+1 -> 17 | I25: 0 | J25: 0 | K25: 0 | L25: 0 | M25: 0 | U25: 0 | V25: 0 | W25: 0 | X25: 0 | Y25: 0
B26: 18 | I26: 0 | J26: 0 | K26: 0 | L26: 0 | M26: 0 | U26: 0 | V26: 0 | W26: 0 | X26: 0 | Y26: 0
B27: 19 | I27: 0 | J27: 0 | K27: 0 | L27: 0 | M27: 0 | U27: 0 | V27: 0 | W27: 0 | X27: 0 | Y27: 0
B28: 20 | I28: 0 | J28: 0 | K28: 0 | L28: 0 | M28: 0 | U28: 0 | V28: 0 | W28: 0 | X28: 0 | Y28: 0
B29: 21 | I29: 0 | J29: 0 | K29: 0 | L29: 0 | M29: 0 | U29: 0 | V29: 0 | W29: 0 | X29: 0 | Y29: 0
B30: 22 | I30: 0 | J30: 0 | K30: 0 | L30: 0 | M30: 0 | U30: 0 | V30: 0 | W30: 0 | X30: 0 | Y30: 0
B31: 23 | I31: 0 | J31: 0 | K31: 0 | L31: 0 | M31: 0 | U31: 0 | V31: 0 | W31: 0 | X31: 0 | Y31: 0
B32: 24 | I32: 0 | J32: 0 | K32: 0 | L32: 0 | M32: 0 | U32: 0 | V32: 0 | W32: 0 | X32: 0 | Y32: 0
B33: 25 | I33: 0 | J33: 0 | K33: 0 | L33: 0 | M33: 0 | U33: 0 | V33: 0 | W33: 0 | X33: 0 | Y33: 0
B34: 26 | I34: 0 | J34: 0 | K34: 0 | L34: 0 | M34: 0 | U34: 0 | V34: 0 | W34: 0 | X34: 0 | Y34: 0
B35: 27 | I35: 0 | J35: 0 | K35: 0 | L35: 0 | M35: 0 | U35: 0 | V35: 0 | W35: 0 | X35: 0 | Y35: 0
B36: 28 | I36: 0 | J36: 0 | K36: 0 | L36: 0 | M36: 0 | U36: 0 | V36: 0 | W36: 0 | X36: 0 | Y36: 0
B37: 29 | I37: 0 | J37: 0 | K37: 0 | L37: 0 | M37: 0 | U37: 0 | V37: 0 | W37: 0 | X37: 0 | Y37: 0
B38: 30 | I38: 0 | J38: 0 | K38: 0 | L38: 0 | M38: 0 | U38: 0 | V38: 0 | W38: 0 | X38: 0 | Y38: 0
B39: 31 | I39: 0 | J39: 0 | K39: 0 | L39: 0 | M39: 0 | U39: 0 | V39: 0 | W39: 0 | X39: 0 | Y39: 0
B40: 32 | I40: 0 | J40: 0 | K40: 0 | L40: 0 | M40: 0 | U40: 0 | V40: 0 | W40: 0 | X40: 0 | Y40: 0
B41: 33 | I41: 0 | J41: 0 | K41: 0 | L41: 0 | M41: 0 | U41: 0 | V41: 0 | W41: 0 | X41: 0 | Y41: 0
B42: 34 | I42: 0 | J42: 0 | K42: 0 | L42: 0 | M42: 0 | U42: 0 | V42: 0 | W42: 0 | X42: 0 | Y42: 0
B43: 35 | I43: 0 | J43: 0 | K43: 0 | L43: 0 | M43: 0 | U43: 0 | V43: 0 | W43: 0 | X43: 0 | Y43: 0
B44: 36 | I44: 0 | J44: 0 | K44: 0 | L44: 0 | M44: 0 | U44: 0 | V44: 0 | W44: 0 | X44: 0 | Y44: 0
B45: 37 | I45: 0 | J45: 0 | K45: 0 | L45: 0 | M45: 0 | U45: 0 | V45: 0 | W45: 0 | X45: 0 | Y45: 0
B46: 38 | I46: 0 | J46: 0 | K46: 0 | L46: 0 | M46: 0 | U46: 0 | V46: 0 | W46: 0 | X46: 0 | Y46: 0
B47: 39 | I47: 0 | J47: 0 | K47: 0 | L47: 0 | M47: 0 | U47: 0 | V47: 0 | W47: 0 | X47: 0 | Y47: 0
B48: 40 | I48: 0 | J48: 0 | K48: 0 | L48: 0 | M48: 0 | U48: 0 | V48: 0 | W48: 0 | X48: 0 | Y48: 0
B49: 41 | I49: 0 | J49: 0 | K49: 0 | L49: 0 | M49: 0 | U49: 0 | V49: 0 | W49: 0 | X49: 0 | Y49: 0
B50: 42 | I50: 0 | J50: 0 | K50: 0 | L50: 0 | M50: 0 | U50: 0 | V50: 0 | W50: 0 | X50: 0 | Y50: 0
B51: 43 | I51: 0 | J51: 0 | K51: 0 | L51: 0 | M51: 0 | U51: 0 | V51: 0 | W51: 0 | X51: 0 | Y51: 0
B52: 44 | I52: 0 | J52: 0 | K52: 0 | L52: 0 | M52: 0 | U52: 0 | V52: 0 | W52: 0 | X52: 0 | Y52: 0
B53: 45 | I53: 0 | J53: 0 | K53: 0 | L53: 0 | M53: 0 | U53: 0 | V53: 0 | W53: 0 | X53: 0 | Y53: 0
B54: 46 | I54: 0 | J54: 0 | K54: 0 | L54: 0 | M54: 0 | U54: 0 | V54: 0 | W54: 0 | X54: 0 | Y54: 0
B55: 47 | I55: 0 | J55: 0 | K55: 0 | L55: 0 | M55: 0 | U55: 0 | V55: 0 | W55: 0 | X55: 0 | Y55: 0
B56: 48 | I56: 0 | J56: 0 | K56: 0 | L56: 0 | M56: 0 | U56: 0 | V56: 0 | W56: 0 | X56: 0 | Y56: 0
B57: 49 | I57: 0 | J57: 0 | K57: 0 | L57: 0 | M57: 0 | U57: 0 | V57: 0 | W57: 0 | X57: 0 | Y57: 0
B58: 50 | I58: 0 | J58: 0 | K58: 0 | L58: 0 | M58: 0 | U58: 0 | V58: 0 | W58: 0 | X58: 0 | Y58: 0
B59: 51 | I59: 0 | J59: 0 | K59: 0 | L59: 0 | M59: 0 | U59: 0 | V59: 0 | W59: 0 | X59: 0 | Y59: 0
B60: 52 | I60: 0 | J60: 0 | K60: 0 | L60: 0 | M60: 0 | U60: 0 | V60: 0 | W60: 0 | X60: 0 | Y60: 0
B61: 53 | I61: 0 | J61: 0 | K61: 0 | L61: 0 | M61: 0 | U61: 0 | V61: 0 | W61: 0 | X61: 0 | Y61: 0
B62: 54 | I62: 0 | J62: 0 | K62: 0 | L62: 0 | M62: 0 | U62: 0 | V62: 0 | W62: 0 | X62: 0 | Y62: 0
B63: 55 | I63: 0 | J63: 0 | K63: 0 | L63: 0 | M63: 0 | U63: 0 | V63: 0 | W63: 0 | X63: 0 | Y63: 0
B64: 56 | I64: 0 | J64: 0 | K64: 0 | L64: 0 | M64: 0 | U64: 0 | V64: 0 | W64: 0 | X64: 0 | Y64: 0
B65: 57 | I65: 0 | J65: 0 | K65: 0 | L65: 0 | M65: 0 | U65: 0 | V65: 0 | W65: 0 | X65: 0 | Y65: 0
B66: 58 | I66: 0 | J66: 0 | K66: 0 | L66: 0 | M66: 0 | U66: 0 | V66: 0 | W66: 0 | X66: 0 | Y66: 0
B67: 59 | I67: 0 | J67: 0 | K67: 0 | L67: 0 | M67: 0 | U67: 0 | V67: 0 | W67: 0 | X67: 0 | Y67: 0
B68: 60 | I68: 0 | J68: 0 | K68: 0 | L68: 0 | M68: 0 | U68: 0 | V68: 0 | W68: 0 | X68: 0 | Y68: 0
B69: 61 | I69: 0 | J69: 0 | K69: 0 | L69: 0 | M69: 0 | U69: 0 | V69: 0 | W69: 0 | X69: 0 | Y69: 0
B70: 62 | I70: 0 | J70: 0 | K70: 0 | L70: 0 | M70: 0 | U70: 0 | V70: 0 | W70: 0 | X70: 0 | Y70: 0
B71: 63 | I71: 0 | J71: 0 | K71: 0 | L71: 0 | M71: 0 | U71: 0 | V71: 0 | W71: 0 | X71: 0 | Y71: 0
B72: 64 | I72: 0 | J72: 0 | K72: 0 | L72: 0 | M72: 0 | U72: 0 | V72: 0 | W72: 0 | X72: 0 | Y72: 0
B73: 65 | I73: 0 | J73: 0 | K73: 0 | L73: 0 | M73: 0 | U73: 0 | V73: 0 | W73: 0 | X73: 0 | Y73: 0

Sheet MAHOGANY-WOOD
P1: =SUMIF(Q11:Q1000001,Q1,H11:H100001) -> 0 | Q1: سنديان | AA1: كمية
P2: =SUMIF(Q12:Q1000002,Q2,H12:H100002) -> 0 | Q2: سنديان | AA2: قيمة
P3: =SUMIF(Q13:Q1000003,Q3,H13:H100003) -> 0
P4: =SUMIF(Q14:Q1000004,Q4,H14:H100004) -> 0
AB6: قشاط | AC6: تهوية
H7: =SUM(H11:H100001) -> 0 | M7: =SUM(M11:M100001) -> 0 | T7: =SUM(T11:T100001) -> 26.579 | Y7: 57376.935 | AA7: =H7-T7 -> -26.579 | AB7: =2.4*0.05*0.25/12*3 -> 0.0075 | AC7: =2.4*0.05*0.25/12*4 -> 0.01
B8: الرقم التسلسلى | C8: الحالة وارد | D8: الحالة الصادر | E8: الصنف | F8: الوحدة | G8: السعر | H8: الكمية | I8: الاجمالى | J8: الخصم | K8: الاجمالى بعد الخصم | L8: VAT 5% | M8: الاجمالى | N8: رقم الفاتورة | O8: تاريخ الفاتورة | P8: اسم المورد | Q8: الكود | R8: رقم امر الاستلام | S8: رقم اذن اصرف | T8: الكمية الصادرة | U8: الاجمالى | V8: الخصم | W8: الاجمالى بعد الخصم | X8: VAT 5% | Y8: الاجمالى | Z8: PO | AA8: اسم المشروع | AB8: ملاحظات
B9: 1 | D9: صرف | E9: خشب ماهوجني | F9: M3 | G9: 3300 | I9: =G9*H9 -> 0 | J9: 0 | K9: =I9-J9 -> 0 | L9: =K9*5% -> 0 | M9: =L9+K9 -> 0 | Q9: ماهوجني | T9: 0.22 | U9: =T9*G9 -> 726 | V9: 0 | W9: =U9-V9 -> 726 | X9: =W9*5% -> 36.3 | Y9: =X9+W9 -> 762.3 | AA9: ابو وليد
B10: =B9+1 -> 2 | C10: وارد | E10: مهوجني افريقي كسيبو 2" كاميرونى | F10: M3 | G10: 2550 | H10: 9.061 | I10: 23105.55 | J10: 0 | K10: 23105.55 | L10: 1155.2775 | M10: 24260.8275 | N10: 57 | O10: 2018-03-22 | P10: شركة مدار لمواد البناء | Q10: ماهوجني | R10: 112 | U10: 0 | V10: 0 | W10: 0 | X10: 0 | Y10: 0
H11: 0 | M11: 0 | T11: 8 | U11: 0 | V11: 0 | W11: 0 | X11: 0 | Y11: 0 | Z11: 18-062 | AA11: JAZIRAH
B12: 1 | D12: صرف | E12: خشب ماهوجني | F12: M3 | G12: 3300 | I12: 0 | J12: 0 | K12: 0 | L12: 0 | M12: 0 | Q12: ماهوجني | T12: 1.061 | U12: 3501.3 | V12: 0 | W12: 3501.3 | X12: 175.065 | Y12: 3676.365 | Z12: 17-180 | AA12: ADVANCE
H13: 0 | M13: 0 | U13: 0 | V13: 0 | W13: 0 | X13: 0 | Y13: 0
B14: 1 | D14: صرف | E14: خشب ماهوجني | F14: M3 | G14: 3300 | I14: 0 | J14: 0 | K14: 0 | L14: 0 | M14: 0 | Q14: ماهوجني | T14: 3.411 | U14: 11256.3 | V14: 0 | W14: 11256.3 | X14: 562.815 | Y14: 11819.115 | Z14: 18-104 | AA14: مشروع اليامي
H15: 0 | M15: 0 | U15: 0 | V15: 0 | W15: 0 | X15: 0 | Y15: 0
B16: 1 | D16: صرف | E16: خشب ماهوجني | F16: M3 | G16: 3300 | I16: 0 | J16: 0 | K16: 0 | L16: 0 | M16: 0 | Q16: ماهوجني | T16: 4.483 | U16: 14793.9 | V16: 0 | W16: 14793.9 | X16: 739.695 | Y16: 15533.595 | Z16: 18-035 | AA16: QOUMA
H17: 0 | M17: 0 | T17: 0.21 | U17: 0 | V17: 0 | W17: 0 | X17: 0 | Y17: 0 | Z17: منجرة | AA17: خالد نمور
B18: 1 | D18: صرف | E18: خشب ماهوجني | F18: M3 | G18: 3300 | I18: 0 | J18: 0 | K18: 0 | L18: 0 | M18: 0 | Q18: ماهوجني | T18: 0.185 | U18: 610.5 | V18: 0 | W18: 610.5 | X18: 30.525 | Y18: 641.025 | Z18: منجرة | AA18: خالد نمور
H19: 0 | M19: 0 | U19: 0 | V19: 0 | W19: 0 | X19: 0 | Y19: 0
B20: 1 | D20: صرف | E20: خشب ماهوجني | F20: M3 | G20: 3300 | I20: 0 | J20: 0 | K20: 0 | L20: 0 | M20: 0 | Q20: ماهوجني | T20: 2.094 | U20: 6910.2 | V20: 0 | W20: 6910.2 | X20: 345.51 | Y20: 7255.71 | Z20: 17-180 | AA20: اصلاح حلوق مشروع ادفنس
H21: 0 | M21: 0 | U21: 0 | V21: 0 | W21: 0 | X21: 0 | Y21: 0
B22: 1 | D22: صرف | E22: خشب ماهوجني | F22: M3 | G22: 3300 | I22: 0 | J22: 0 | K22: 0 | L22: 0 | M22: 0 | Q22: ماهوجني | T22: 3.81 | U22: 12573 | V22: 0 | W22: 12573 | X22: 628.65 | Y22: 13201.65 | Z22: 18-282 | AA22: الحجز الصحي
H23: 0 | M23: 0 | T23: 0.7 | U23: 0 | V23: 0 | W23: 0 | X23: 0 | Y23: 0 | Z23: 18-276 | AA23: سعودي
B24: 1 | D24: صرف | E24: خشب ماهوجني | F24: M3 | G24: 3300 | I24: 0 | J24: 0 | K24: 0 | L24: 0 | M24: 0 | Q24: ماهوجني | T24: 0.25 | U24: 825 | V24: 0 | W24: 825 | X24: 41.25 | Y24: 866.25 | Z24: 18-338 | AA24: JAZIRAH
H25: 0 | M25: 0 | T25: 1.11 | U25: 0 | V25: 0 | W25: 0 | X25: 0 | Y25: 0 | Z25: 18-209 | AA25: ADVANCE
B26: 1 | D26: صرف | E26: خشب ماهوجني | F26: M3 | G26: 3300 | I26: 0 | J26: 0 | K26: 0 | L26: 0 | M26: 0 | Q26: ماهوجني | T26: 1.265 | U26: 4174.5 | V26: 0 | W26: 4174.5 | X26: 208.725 | Y26: 4383.225 | Z26: 17-180 | AA26: ADVANCE
H27: 0 | M27: 0 | U27: 0 | V27: 0 | W27: 0 | X27: 0 | Y27: 0
B28: 1 | D28: صرف | E28: خشب ماهوجني | F28: M3 | G28: 3300 | I28: 0 | J28: 0 | K28: 0 | L28: 0 | M28: 0 | Q28: ماهوجني | U28: 0 | V28: 0 | W28: 0 | X28: 0 | Y28: 0
H29: 0 | M29: 0 | U29: 0 | V29: 0 | W29: 0 | X29: 0 | Y29: 0
M30: 0 | Q30: ماهوجني | U30: 0 | V30: 0 | W30: 0 | X30: 0 | Y30: 0
M31: 0 | Q31: ماهوجني | U31: 0 | V31: 0 | W31: 0 | X31: 0 | Y31: 0
M32: 0 | Q32: ماهوجني | U32: 0 | V32: 0 | W32: 0 | X32: 0 | Y32: 0
M33: 0 | Q33: ماهوجني | U33: 0 | V33: 0 | W33: 0 | X33: 0 | Y33: 0
M34: 0 | Q34: ماهوجني | U34: 0 | V34: 0 | W34: 0 | X34: 0 | Y34: 0
M35: 0 | Q35: ماهوجني | U35: 0 | V35: 0 | W35: 0 | X35: 0 | Y35: 0
M36: 0 | Q36: ماهوجني | U36: 0 | V36: 0 | W36: 0 | X36: 0 | Y36: 0
M37: 0 | Q37: ماهوجني | U37: 0 | V37: 0 | W37: 0 | X37: 0 | Y37: 0
M38: 0 | Q38: ماهوجني | U38: 0 | V38: 0 | W38: 0 | X38: 0 | Y38: 0
M39: 0 | Q39: ماهوجني | U39: 0 | V39: 0 | W39: 0 | X39: 0 | Y39: 0
M40: 0 | Q40: ماهوجني | U40: 0 | V40: 0 | W40: 0 | X40: 0 | Y40: 0
M41: 0 | Q41: ماهوجني | U41: 0 | V41: 0 | W41: 0 | X41: 0 | Y41: 0
M42: 0 | Q42: ماهوجني | U42: 0 | V42: 0 | W42: 0 | X42: 0 | Y42: 0
M43: 0 | Q43: ماهوجني | U43: 0 | V43: 0 | W43: 0 | X43: 0 | Y43: 0
M44: 0 | Q44: ماهوجني | U44: 0 | V44: 0 | W44: 0 | X44: 0 | Y44: 0
M45: 0 | Q45: ماهوجني | U45: 0 | V45: 0 | W45: 0 | X45: 0 | Y45: 0
M46: 0 | Q46: ماهوجني | U46: 0 | V46: 0 | W46: 0 | X46: 0 | Y46: 0
M47: 0 | Q47: ماهوجني | U47: 0 | V47: 0 | W47: 0 | X47: 0 | Y47: 0
M48: 0 | Q48: ماهوجني | U48: 0 | V48: 0 | W48: 0 | X48: 0 | Y48: 0
M49: 0 | Q49: ماهوجني | U49: 0 | V49: 0 | W49: 0 | X49: 0 | Y49: 0
M50: 0 | Q50: ماهوجني | U50: 0 | V50: 0 | W50: 0 | X50: 0 | Y50: 0
M51: 0 | Q51: ماهوجني | U51: 0 | V51: 0 | W51: 0 | X51: 0 | Y51: 0
M52: 0 | Q52: ماهوجني | U52: 0 | V52: 0 | W52: 0 | X52: 0 | Y52: 0
M53: 0 | Q53: ماهوجني | U53: 0 | V53: 0 | W53: 0 | X53: 0 | Y53: 0
M54: 0 | Q54: ماهوجني | U54: 0 | V54: 0 | W54: 0 | X54: 0 | Y54: 0
M55: 0 | Q55: ماهوجني | U55: 0 | V55: 0 | W55: 0 | X55: 0 | Y55: 0
M56: 0 | Q56: ماهوجني | U56: 0 | V56: 0 | W56: 0 | X56: 0 | Y56: 0
M57: 0 | Q57: ماهوجني | U57: 0 | V57: 0 | W57: 0 | X57: 0 | Y57: 0
M58: 0 | Q58: ماهوجني | U58: 0 | V58: 0 | W58: 0 | X58: 0 | Y58: 0
M59: 0 | Q59: ماهوجني | U59: 0 | V59: 0 | W59: 0 | X59: 0 | Y59: 0
M60: 0 | Q60: ماهوجني | U60: 0 | V60: 0 | W60: 0 | X60: 0 | Y60: 0
M61: 0 | Q61: ماهوجني | U61: 0 | V61: 0 | W61: 0 | X61: 0 | Y61: 0
M62: 0 | Q62: ماهوجني | U62: 0 | V62: 0 | W62: 0 | X62: 0 | Y62: 0
M63: 0 | Q63: ماهوجني | U63: 0 | V63: 0 | W63: 0 | X63: 0 | Y63: 0
M64: 0 | Q64: ماهوجني | U64: 0 | V64: 0 | W64: 0 | X64: 0 | Y64: 0
M65: 0 | Q65: ماهوجني | U65: 0 | V65: 0 | W65: 0 | X65: 0 | Y65: 0
M66: 0 | Q66: ماهوجني | U66: 0 | V66: 0 | W66: 0 | X66: 0 | Y66: 0
M67: 0 | Q67: ماهوجني | U67: 0 | V67: 0 | W67: 0 | X67: 0 | Y67: 0
M68: 0 | Q68: ماهوجني | U68: 0 | V68: 0 | W68: 0 | X68: 0 | Y68: 0
M69: 0 | Q69: ماهوجني | U69: 0 | V69: 0 | W69: 0 | X69: 0 | Y69: 0
M70: 0 | Q70: ماهوجني | U70: 0 | V70: 0 | W70: 0 | X70: 0 | Y70: 0
M71: 0 | Q71: ماهوجني | U71: 0 | V71: 0 | W71: 0 | X71: 0 | Y71: 0
M72: 0 | Q72: ماهوجني | U72: 0 | V72: 0 | W72: 0 | X72: 0 | Y72: 0
M73: =L73+K73 -> 0 | Q73: ماهوجني | U73: =T73*G73 -> 0 | V73: 0 | W73: =U73-V73 -> 0 | X73: =W73*5% -> 0 | Y73: =X73+W73 -> 0
M74: =L74+K74 -> 0 | Q74: ماهوجني | U74: =T74*G74 -> 0 | V74: 0 | W74: =U74-V74 -> 0 | X74: =W74*5% -> 0 | Y74: =X74+W74 -> 0
M75: 0 | Q75: ماهوجني | U75: 0 | V75: 0 | W75: 0 | X75: 0 | Y75: 0
